[Event "*** Titled Tuesday Blitz"]
[Site "Chess.com"]
[Date "2021.02.09"]
[Round "3"]
[White "GameOverBro"]
[Black "Sanyura"]
[Result "0-1"]
[WhiteElo "2422"]
[BlackElo "2651"]
[TimeControl "180+1"]
[EndTime "10:28:13 PST"]
[Termination "Sanyura won by resignation"]

1. e4 {[%clk 0:03:00.9]} 1... c5 {[%clk 0:02:41.1]} 2. Ne2 {[%clk 0:03:00.6]}
2... e6 {[%clk 0:02:40]} 3. Nbc3 {[%clk 0:03:00.1]} 3... Nc6 {[%clk 0:02:40]} 4.
d4 {[%clk 0:03:00.1]} 4... cxd4 {[%clk 0:02:40.9]} 5. Nxd4 {[%clk 0:03:00.5]}
5... Nf6 {[%clk 0:02:41.5]} 6. Nxc6 {[%clk 0:03:00.1]} 6... bxc6 {[%clk
0:02:42.4]} 7. Bd3 {[%clk 0:03:00.5]} 7... d5 {[%clk 0:02:42.4]} 8. O-O {[%clk
0:03:00.4]} 8... Be7 {[%clk 0:02:42.3]} 9. Re1 {[%clk 0:03:00.6]} 9... O-O
{[%clk 0:02:42.2]} 10. e5 {[%clk 0:03:01]} 10... Nd7 {[%clk 0:02:42.2]} 11. Qg4
{[%clk 0:03:01.5]} 11... g6 {[%clk 0:02:34.1]} 12. Bh6 {[%clk 0:02:58.7]} 12...
Re8 {[%clk 0:02:33.6]} 13. Na4 {[%clk 0:02:58.3]} 13... Rb8 {[%clk 0:02:32.8]}
14. b3 {[%clk 0:02:54.9]} 14... Rb4 {[%clk 0:02:32.3]} 15. c4 {[%clk 0:02:51.7]}
15... Ba6 {[%clk 0:02:27.6]} 16. Bd2 {[%clk 0:02:44.3]} 16... Rb8 {[%clk
0:02:27.4]} 17. Rac1 {[%clk 0:02:40.9]} 17... Ba3 {[%clk 0:02:09.5]} 18. Rc2
{[%clk 0:02:39.9]} 18... Bf8 {[%clk 0:02:04.8]} 19. h4 {[%clk 0:02:38]} 19...
Bg7 {[%clk 0:01:56.9]} 20. Qg3 {[%clk 0:02:30]} 20... dxc4 {[%clk 0:01:25.4]}
21. bxc4 {[%clk 0:02:01.3]} 21... Nxe5 {[%clk 0:00:34.5]} 22. Bf1 {[%clk
0:01:50.4]} 22... Bxc4 {[%clk 0:00:26.5]} 23. Bf4 {[%clk 0:01:04.7]} 23... Bxf1
{[%clk 0:00:25.4]} 24. Bxe5 {[%clk 0:00:40.3]} 24... Qa5 {[%clk 0:00:21.9]} 25.
Bxb8 {[%clk 0:00:32.2]} 25... Qxe1 {[%clk 0:00:20.9]} 26. Kh2 {[%clk 0:00:32.1]}
26... Qb4 {[%clk 0:00:17]} 27. Nc3 {[%clk 0:00:23.1]} 27... Qxb8 {[%clk
0:00:16.5]} 0-1

[Event "*** Titled Tuesday Blitz"]
[Site "Chess.com"]
[Date "2021.02.09"]
[Round "3"]
[White "Fortitudine"]
[Black "FMOlexandrProhorov"]
[Result "1-0"]
[WhiteElo "2333"]
[BlackElo "2121"]
[TimeControl "180+1"]
[EndTime "10:28:17 PST"]
[Termination "Fortitudine won on time"]

1. c4 {[%clk 0:03:00.9]} 1... e5 {[%clk 0:02:52.2]} 2. g3 {[%clk 0:02:57.6]}
2... c6 {[%clk 0:02:50.8]} 3. d4 {[%clk 0:02:53.6]} 3... d6 {[%clk 0:02:37.5]}
4. Bg2 {[%clk 0:02:45]} 4... g6 {[%clk 0:02:35.5]} 5. Nc3 {[%clk 0:02:38.8]}
5... Bg7 {[%clk 0:02:35.1]} 6. Nf3 {[%clk 0:02:38.7]} 6... exd4 {[%clk
0:02:29.4]} 7. Nxd4 {[%clk 0:02:38.6]} 7... Nf6 {[%clk 0:02:30.3]} 8. O-O {[%clk
0:02:38.2]} 8... O-O {[%clk 0:02:28.6]} 9. b3 {[%clk 0:02:38.3]} 9... Re8 {[%clk
0:02:26]} 10. e3 {[%clk 0:02:33.7]} 10... a5 {[%clk 0:02:20.1]} 11. Bb2 {[%clk
0:02:32.9]} 11... Na6 {[%clk 0:02:13]} 12. Qd2 {[%clk 0:02:27.6]} 12... Qc7
{[%clk 0:02:10.9]} 13. Rad1 {[%clk 0:02:20.5]} 13... Nc5 {[%clk 0:02:00.7]} 14.
h3 {[%clk 0:02:03.9]} 14... Qb6 {[%clk 0:01:32.8]} 15. Ba3 {[%clk 0:01:40.4]}
15... Nfe4 {[%clk 0:00:50.5]} 16. Nxe4 {[%clk 0:01:39.8]} 16... Nxe4 {[%clk
0:00:50.3]} 17. Qc1 {[%clk 0:01:39.2]} 17... d5 {[%clk 0:00:38.6]} 18. cxd5
{[%clk 0:01:24.5]} 18... cxd5 {[%clk 0:00:39.5]} 19. Bb2 {[%clk 0:01:23.7]}
19... a4 {[%clk 0:00:38.1]} 20. Qb1 {[%clk 0:01:10.8]} 20... Be6 {[%clk
0:00:24.2]} 21. Nxe6 {[%clk 0:01:09.2]} 21... fxe6 {[%clk 0:00:22.9]} 22. Bxg7
{[%clk 0:01:09.2]} 22... Kxg7 {[%clk 0:00:22]} 23. bxa4 {[%clk 0:01:08.9]} 23...
Qxb1 {[%clk 0:00:15.4]} 24. Rxb1 {[%clk 0:01:09.8]} 24... Nd6 {[%clk 0:00:13.3]}
25. Rb4 {[%clk 0:01:08.2]} 25... Rec8 {[%clk 0:00:11.6]} 26. Rfb1 {[%clk
0:01:05.4]} 26... Kf6 {[%clk 0:00:11.1]} 27. h4 {[%clk 0:01:02.6]} 27... Ke7
{[%clk 0:00:10.8]} 28. Bh3 {[%clk 0:01:02.9]} 28... Ra5 {[%clk 0:00:07.8]} 29.
R1b2 {[%clk 0:01:01.3]} 29... Rac5 {[%clk 0:00:07.6]} 30. Kg2 {[%clk 0:01:00.3]}
30... Rc1 {[%clk 0:00:07.6]} 31. a5 {[%clk 0:01:00]} 31... R8c2 {[%clk 0:00:05]}
32. Rxc2 {[%clk 0:00:59.2]} 32... Rxc2 {[%clk 0:00:04.8]} 33. a6 {[%clk
0:00:56.8]} 33... bxa6 {[%clk 0:00:03.9]} 34. Ra4 {[%clk 0:00:57.1]} 34... Ne4
{[%clk 0:00:01.8]} 35. Rxa6 {[%clk 0:00:56.4]} 1-0

[Event "*** Titled Tuesday Blitz"]
[Site "Chess.com"]
[Date "2021.02.09"]
[Round "3"]
[White "NiranjanNavalgund"]
[Black "Kostukov_Alex"]
[Result "0-1"]
[WhiteElo "2515"]
[BlackElo "2365"]
[TimeControl "180+1"]
[EndTime "10:28:18 PST"]
[Termination "Kostukov_Alex won by resignation"]

1. d4 {[%clk 0:03:00.9]} 1... g6 {[%clk 0:02:58.1]} 2. h4 {[%clk 0:03:00.3]}
2... Nf6 {[%clk 0:02:57.4]} 3. Nc3 {[%clk 0:02:59.6]} 3... d5 {[%clk 0:02:56.1]}
4. Bf4 {[%clk 0:02:58.8]} 4... Bg7 {[%clk 0:02:54.5]} 5. Qd2 {[%clk 0:02:58.5]}
5... Ne4 {[%clk 0:02:50.2]} 6. Nxe4 {[%clk 0:02:57.6]} 6... dxe4 {[%clk
0:02:51.1]} 7. c3 {[%clk 0:02:58.3]} 7... h5 {[%clk 0:02:44.7]} 8. Nh3 {[%clk
0:02:54.5]} 8... Nc6 {[%clk 0:02:39.5]} 9. O-O-O {[%clk 0:02:48.8]} 9... e5
{[%clk 0:02:38.2]} 10. dxe5 {[%clk 0:02:47.4]} 10... Qxd2+ {[%clk 0:02:37.4]}
11. Rxd2 {[%clk 0:02:48.3]} 11... Nxe5 {[%clk 0:02:37.8]} 12. e3 {[%clk
0:02:48.1]} 12... Bf5 {[%clk 0:02:21]} 13. Ng5 {[%clk 0:02:47.9]} 13... Ke7
{[%clk 0:02:05.7]} 14. Bxe5 {[%clk 0:02:40.7]} 14... Bxe5 {[%clk 0:02:04.9]} 15.
Bc4 {[%clk 0:02:41.6]} 15... f6 {[%clk 0:02:02.9]} 16. Nf7 {[%clk 0:02:41.2]}
16... Rhf8 {[%clk 0:01:40.8]} 17. Nxe5 {[%clk 0:02:39.3]} 17... fxe5 {[%clk
0:01:41.7]} 18. Rhd1 {[%clk 0:02:37.7]} 18... Bg4 {[%clk 0:01:34.7]} 19. Rf1
{[%clk 0:02:36]} 19... Rad8 {[%clk 0:01:31.4]} 20. Bd5 {[%clk 0:02:34]} 20...
Be6 {[%clk 0:01:24.4]} 21. Bxe4 {[%clk 0:02:31.1]} 21... c6 {[%clk 0:01:20.1]}
22. Bxg6 {[%clk 0:02:21.2]} 22... Rxd2 {[%clk 0:01:17.1]} 23. Kxd2 {[%clk
0:02:22.1]} 23... Bc4 {[%clk 0:01:17.2]} 24. Rg1 {[%clk 0:02:13.9]} 24... Rxf2+
{[%clk 0:01:16.8]} 25. Kc1 {[%clk 0:02:14.4]} 25... Bf7 {[%clk 0:01:06.6]} 26.
Be4 {[%clk 0:02:05.6]} 26... Bxa2 {[%clk 0:01:00.8]} 27. Bf3 {[%clk 0:02:04.7]}
27... Bf7 {[%clk 0:00:52]} 28. Rh1 {[%clk 0:01:59.4]} 28... a5 {[%clk
0:00:45.3]} 29. Rh3 {[%clk 0:01:58.3]} 29... Bg6 {[%clk 0:00:38.3]} 30. Rg3
{[%clk 0:01:57.1]} 30... Kf6 {[%clk 0:00:36.8]} 31. Rg5 {[%clk 0:01:54]} 31...
Rc2+ {[%clk 0:00:34.1]} 32. Kd1 {[%clk 0:01:49.1]} 32... Rxb2 {[%clk 0:00:34.4]}
33. Bxh5 {[%clk 0:01:48.7]} 33... Bxh5+ {[%clk 0:00:33.5]} 34. Rxh5 {[%clk
0:01:49.1]} 34... Rxg2 {[%clk 0:00:33.6]} 35. Rh7 {[%clk 0:01:47.5]} 35... b5
{[%clk 0:00:32.7]} 36. Rc7 {[%clk 0:01:47.1]} 36... Kf5 {[%clk 0:00:31.5]} 37.
Rxc6 {[%clk 0:01:46.9]} 37... Ke4 {[%clk 0:00:30.3]} 38. Rc5 {[%clk 0:01:46.5]}
38... Kd3 {[%clk 0:00:30.2]} 39. Rd5+ {[%clk 0:01:44.5]} 39... Kxe3 {[%clk
0:00:26]} 40. Rxe5+ {[%clk 0:01:43.5]} 40... Kd3 {[%clk 0:00:22.8]} 41. Ke1
{[%clk 0:01:40.8]} 41... b4 {[%clk 0:00:20.5]} 42. cxb4 {[%clk 0:01:39.3]} 42...
axb4 {[%clk 0:00:21]} 43. Re8 {[%clk 0:01:38.6]} 43... b3 {[%clk 0:00:20.9]} 44.
Rd8+ {[%clk 0:01:38.4]} 44... Ke3 {[%clk 0:00:20]} 45. Re8+ {[%clk 0:01:38]}
45... Kd3 {[%clk 0:00:18.7]} 46. Kf1 {[%clk 0:01:38]} 46... Rh2 {[%clk
0:00:18.1]} 47. Rb8 {[%clk 0:01:34.9]} 47... b2 {[%clk 0:00:17.9]} 48. Kg1
{[%clk 0:01:31.3]} 48... Rc2 {[%clk 0:00:17.9]} 49. Rd8+ {[%clk 0:01:30.6]}
49... Ke4 {[%clk 0:00:17.9]} 50. h5 {[%clk 0:01:19]} 50... b1=Q+ {[%clk
0:00:16.1]} 0-1

[Event "*** Titled Tuesday Blitz"]
[Site "Chess.com"]
[Date "2021.02.09"]
[Round "3"]
[White "Euwe1234"]
[Black "K_A_S_T_O_R"]
[Result "0-1"]
[WhiteElo "2456"]
[BlackElo "2805"]
[TimeControl "180+1"]
[EndTime "10:28:20 PST"]
[Termination "K_A_S_T_O_R won by resignation"]

1. e4 {[%clk 0:03:00.9]} 1... c5 {[%clk 0:02:59.7]} 2. Nf3 {[%clk 0:03:00.8]}
2... d6 {[%clk 0:03:00.1]} 3. d4 {[%clk 0:02:59.1]} 3... cxd4 {[%clk 0:03:00.6]}
4. Nxd4 {[%clk 0:03:00]} 4... Nf6 {[%clk 0:03:00.3]} 5. Nc3 {[%clk 0:03:00.5]}
5... a6 {[%clk 0:03:00.6]} 6. Bg5 {[%clk 0:03:00.7]} 6... e6 {[%clk 0:03:00.9]}
7. f3 {[%clk 0:03:00.5]} 7... Nbd7 {[%clk 0:02:57.1]} 8. Qd2 {[%clk 0:03:00.3]}
8... b5 {[%clk 0:02:57.6]} 9. a3 {[%clk 0:03:00.3]} 9... Bb7 {[%clk 0:02:57.3]}
10. O-O-O {[%clk 0:02:59]} 10... Be7 {[%clk 0:02:55.6]} 11. h4 {[%clk
0:02:58.5]} 11... Nb6 {[%clk 0:02:55.5]} 12. Kb1 {[%clk 0:02:54.6]} 12... Rc8
{[%clk 0:02:55.8]} 13. g4 {[%clk 0:02:51]} 13... h6 {[%clk 0:02:51.6]} 14. Be3
{[%clk 0:02:49]} 14... Nfd7 {[%clk 0:02:52]} 15. Qe1 {[%clk 0:02:43.2]} 15...
Ne5 {[%clk 0:02:50.9]} 16. Bc1 {[%clk 0:02:43.1]} 16... Nec4 {[%clk 0:02:40.1]}
17. Bxc4 {[%clk 0:02:30.3]} 17... Nxc4 {[%clk 0:02:39.3]} 18. b3 {[%clk
0:02:30.3]} 18... Ne5 {[%clk 0:02:35.9]} 19. Bb2 {[%clk 0:02:29.8]} 19... Qb6
{[%clk 0:02:29]} 20. Qe2 {[%clk 0:01:50.5]} 20... Bf6 {[%clk 0:02:20.1]} 21. Na2
{[%clk 0:01:38.9]} 21... Ng6 {[%clk 0:02:12.7]} 22. g5 {[%clk 0:01:31.5]} 22...
hxg5 {[%clk 0:02:12]} 23. hxg5 {[%clk 0:01:32.4]} 23... Rxh1 {[%clk 0:02:10.5]}
24. gxf6 {[%clk 0:01:21.7]} 24... Rxd1+ {[%clk 0:02:09.8]} 25. Qxd1 {[%clk
0:01:22.6]} 25... gxf6 {[%clk 0:02:10]} 26. Nb4 {[%clk 0:01:21]} 26... Ne5
{[%clk 0:02:00]} 27. f4 {[%clk 0:01:18.4]} 27... Nd7 {[%clk 0:01:59.5]} 28. Qg4
{[%clk 0:01:16.6]} 28... a5 {[%clk 0:01:52.4]} 29. Nd3 {[%clk 0:00:59.2]} 29...
Ke7 {[%clk 0:01:44.2]} 30. e5 {[%clk 0:00:51.8]} 30... dxe5 {[%clk 0:01:41.7]}
31. fxe5 {[%clk 0:00:52.7]} 31... fxe5 {[%clk 0:01:39.6]} 32. Qg5+ {[%clk
0:00:52.1]} 32... f6 {[%clk 0:01:39.5]} 33. Qg7+ {[%clk 0:00:50.9]} 33... Kd6
{[%clk 0:01:39.7]} 34. Ne2 {[%clk 0:00:16.7]} 34... Be4 {[%clk 0:01:38.2]} 35.
Nc3 {[%clk 0:00:13.3]} 35... Rxc3 {[%clk 0:01:31.8]} 36. Bxc3 {[%clk 0:00:12.5]}
36... Bxd3 {[%clk 0:01:32.7]} 37. cxd3 {[%clk 0:00:13.4]} 37... b4 {[%clk
0:01:26.3]} 38. axb4 {[%clk 0:00:12.9]} 38... axb4 {[%clk 0:01:26.9]} 39. Bd2
{[%clk 0:00:13.5]} 39... Qd4 {[%clk 0:01:27.1]} 40. Kc2 {[%clk 0:00:12.9]} 40...
Kc6 {[%clk 0:01:22.3]} 41. Qe7 {[%clk 0:00:12.5]} 41... Nc5 {[%clk 0:01:19.1]}
42. Qe8+ {[%clk 0:00:10.6]} 42... Kc7 {[%clk 0:01:11.7]} 43. Qe7+ {[%clk
0:00:10.8]} 43... Kb6 {[%clk 0:01:11.5]} 44. Kd1 {[%clk 0:00:08.8]} 44... Qxd3
{[%clk 0:01:08.5]} 45. Qxf6 {[%clk 0:00:08]} 45... Qxd2+ {[%clk 0:01:07.2]} 46.
Kxd2 {[%clk 0:00:07.8]} 46... Ne4+ {[%clk 0:01:07.8]} 0-1

[Event "*** Titled Tuesday Blitz"]
[Site "Chess.com"]
[Date "2021.02.09"]
[Round "3"]
[White "PavelShkapenko"]
[Black "Noam_Vitenberg"]
[Result "1-0"]
[WhiteElo "2703"]
[BlackElo "2432"]
[TimeControl "180+1"]
[EndTime "10:28:26 PST"]
[Termination "PavelShkapenko won on time"]

1. e4 {[%clk 0:02:50.7]} 1... d6 {[%clk 0:02:57.3]} 2. d4 {[%clk 0:02:50.6]}
2... Nf6 {[%clk 0:02:56.4]} 3. Nc3 {[%clk 0:02:50.5]} 3... Nbd7 {[%clk
0:02:55.7]} 4. g4 {[%clk 0:02:49.4]} 4... h6 {[%clk 0:02:54.3]} 5. h3 {[%clk
0:02:48.6]} 5... e5 {[%clk 0:02:54.2]} 6. Nge2 {[%clk 0:02:48.4]} 6... b5 {[%clk
0:02:51.5]} 7. a3 {[%clk 0:02:45.6]} 7... Bb7 {[%clk 0:02:45.5]} 8. Bg2 {[%clk
0:02:44.9]} 8... g6 {[%clk 0:02:37.1]} 9. O-O {[%clk 0:02:44.3]} 9... Bg7 {[%clk
0:02:37.7]} 10. Be3 {[%clk 0:02:43.9]} 10... O-O {[%clk 0:02:37.4]} 11. Ng3
{[%clk 0:02:38.2]} 11... a6 {[%clk 0:02:33.1]} 12. Qd2 {[%clk 0:02:37.7]} 12...
Kh7 {[%clk 0:02:29.7]} 13. f4 {[%clk 0:02:37.6]} 13... Qe7 {[%clk 0:01:45.5]}
14. g5 {[%clk 0:02:09.7]} 14... hxg5 {[%clk 0:01:38.4]} 15. fxg5 {[%clk
0:02:07.9]} 15... Ng8 {[%clk 0:01:38.2]} 16. d5 {[%clk 0:02:02.7]} 16... Rae8
{[%clk 0:01:15.3]} 17. h4 {[%clk 0:02:00.5]} 17... Bc8 {[%clk 0:00:52.3]} 18.
Qe2 {[%clk 0:01:54.4]} 18... f5 {[%clk 0:00:31]} 19. h5 {[%clk 0:01:46.6]} 19...
f4 {[%clk 0:00:09.6]} 20. hxg6+ {[%clk 0:01:45.2]} 20... Kh8 {[%clk 0:00:09.7]}
21. Qh5+ {[%clk 0:01:44.6]} 21... Bh6 {[%clk 0:00:04]} 22. gxh6 {[%clk
0:01:44.8]} 22... Ndf6 {[%clk 0:00:04.3]} 23. g7+ {[%clk 0:01:42.6]} 23... Kh7
{[%clk 0:00:04.6]} 24. gxf8=N+ {[%clk 0:01:41.3]} 24... Rxf8 {[%clk 0:00:05.5]}
25. Qg5 {[%clk 0:01:36]} 25... fxe3 {[%clk 0:00:04.5]} 26. Qg7+ {[%clk
0:01:33.3]} 26... Qxg7 {[%clk 0:00:04.1]} 27. hxg7 {[%clk 0:01:34.2]} 27... Kxg7
{[%clk 0:00:05]} 28. Rae1 {[%clk 0:01:34.2]} 28... Nh6 {[%clk 0:00:04.5]} 29.
Rxe3 {[%clk 0:01:32.8]} 29... Nhg4 {[%clk 0:00:05.4]} 30. Ref3 {[%clk
0:01:31.9]} 30... Rh8 {[%clk 0:00:03.6]} 31. Nf5+ {[%clk 0:01:28.4]} 31... Kf7
{[%clk 0:00:03.9]} 32. Rh3 {[%clk 0:01:24.7]} 32... Rg8 {[%clk 0:00:02.9]} 33.
Nh6+ {[%clk 0:01:18.7]} 33... Nxh6 {[%clk 0:00:01.6]} 34. Rxh6 {[%clk
0:01:18.2]} 34... Rg6 {[%clk 0:00:02.5]} 35. Rxg6 {[%clk 0:01:18.4]} 35... Kxg6
{[%clk 0:00:03.4]} 36. Bf3 {[%clk 0:01:18.6]} 36... Kg5 {[%clk 0:00:03.3]} 37.
Kf2 {[%clk 0:01:18.8]} 37... Kf4 {[%clk 0:00:01.2]} 38. Ne2+ {[%clk 0:01:18.5]}
38... Kg5 {[%clk 0:00:02.1]} 39. Ke3 {[%clk 0:01:18.8]} 39... Kh6 {[%clk
0:00:03]} 40. Rg1 {[%clk 0:01:17.4]} 40... a5 {[%clk 0:00:01.3]} 41. c4 {[%clk
0:01:13.7]} 41... b4 {[%clk 0:00:01.3]} 42. axb4 {[%clk 0:01:12.7]} 42... axb4
{[%clk 0:00:02.2]} 43. Ra1 {[%clk 0:01:12.6]} 43... c5 {[%clk 0:00:02]} 44. dxc6
{[%clk 0:01:12.3]} 44... b3 {[%clk 0:00:02.6]} 45. Ra8 {[%clk 0:01:10.7]} 45...
Be6 {[%clk 0:00:02.1]} 46. c7 {[%clk 0:01:10.8]} 1-0

[Event "*** Titled Tuesday Blitz"]
[Site "Chess.com"]
[Date "2021.02.09"]
[Round "3"]
[White "Grimlock_Glasgow"]
[Black "digilik"]
[Result "1-0"]
[WhiteElo "2494"]
[BlackElo "2227"]
[TimeControl "180+1"]
[EndTime "10:28:26 PST"]
[Termination "Grimlock_Glasgow won on time"]

1. e4 {[%clk 0:03:00.9]} 1... c5 {[%clk 0:03:00]} 2. Nc3 {[%clk 0:03:00.7]} 2...
e6 {[%clk 0:03:00.3]} 3. Nf3 {[%clk 0:02:58.7]} 3... a6 {[%clk 0:02:59.9]} 4. g3
{[%clk 0:02:58]} 4... b5 {[%clk 0:02:59.4]} 5. Bg2 {[%clk 0:02:58.2]} 5... Bb7
{[%clk 0:02:59.9]} 6. O-O {[%clk 0:02:57.9]} 6... b4 {[%clk 0:02:56.9]} 7. Na4
{[%clk 0:02:57.4]} 7... Bxe4 {[%clk 0:02:57.5]} 8. d4 {[%clk 0:02:53.5]} 8...
cxd4 {[%clk 0:02:45]} 9. Re1 {[%clk 0:02:29.1]} 9... Nf6 {[%clk 0:02:34.3]} 10.
Bg5 {[%clk 0:01:57.9]} 10... Bc6 {[%clk 0:02:29.9]} 11. Nxd4 {[%clk 0:01:54.2]}
11... Bxg2 {[%clk 0:02:26.8]} 12. Kxg2 {[%clk 0:01:55.1]} 12... Be7 {[%clk
0:02:06.1]} 13. Nf5 {[%clk 0:01:11.8]} 13... exf5 {[%clk 0:01:54.5]} 14. Bxf6
{[%clk 0:01:11.4]} 14... gxf6 {[%clk 0:01:55.4]} 15. Qd4 {[%clk 0:00:34.6]}
15... O-O {[%clk 0:01:38.3]} 16. Nb6 {[%clk 0:00:28.1]} 16... Nc6 {[%clk
0:01:36.8]} 17. Qe3 {[%clk 0:00:27.1]} 17... f4 {[%clk 0:00:52.5]} 18. gxf4
{[%clk 0:00:25.2]} 18... Rb8 {[%clk 0:00:46.2]} 19. Nd5 {[%clk 0:00:24.3]} 19...
Bd6 {[%clk 0:00:37.7]} 20. Rg1 {[%clk 0:00:17.8]} 20... Kh8 {[%clk 0:00:37.2]}
21. Kh1 {[%clk 0:00:15.6]} 21... Qe8 {[%clk 0:00:20.2]} 22. Qd3 {[%clk
0:00:15.3]} 22... Qe6 {[%clk 0:00:02.7]} 23. Rae1 {[%clk 0:00:13.5]} 1-0

[Event "*** Titled Tuesday Blitz"]
[Site "Chess.com"]
[Date "2021.02.09"]
[Round "3"]
[White "Zhigalko_Sergei"]
[Black "Mr_Sinigami"]
[Result "1-0"]
[WhiteElo "2892"]
[BlackElo "2644"]
[TimeControl "180+1"]
[EndTime "10:28:28 PST"]
[Termination "Zhigalko_Sergei won on time"]

1. e4 {[%clk 0:02:58.3]} 1... c5 {[%clk 0:02:58.9]} 2. Nf3 {[%clk 0:02:57.6]}
2... e6 {[%clk 0:02:58.7]} 3. c3 {[%clk 0:02:57.3]} 3... Nf6 {[%clk 0:02:54.1]}
4. e5 {[%clk 0:02:56.1]} 4... Nd5 {[%clk 0:02:54.2]} 5. Bc4 {[%clk 0:02:56.5]}
5... d6 {[%clk 0:02:47]} 6. d4 {[%clk 0:02:56.5]} 6... cxd4 {[%clk 0:02:45.9]}
7. cxd4 {[%clk 0:02:56.5]} 7... Nc6 {[%clk 0:02:43.1]} 8. O-O {[%clk 0:02:55.1]}
8... Be7 {[%clk 0:02:42.8]} 9. Bd2 {[%clk 0:02:55.4]} 9... O-O {[%clk
0:02:39.7]} 10. Nc3 {[%clk 0:02:55.4]} 10... dxe5 {[%clk 0:02:23.3]} 11. dxe5
{[%clk 0:02:54.1]} 11... Nb6 {[%clk 0:02:08.9]} 12. Bb3 {[%clk 0:02:53.8]} 12...
Nb4 {[%clk 0:02:04.2]} 13. a3 {[%clk 0:02:36.6]} 13... Nd3 {[%clk 0:01:56.6]}
14. Qe2 {[%clk 0:02:33.5]} 14... Nc5 {[%clk 0:01:35.7]} 15. Bc2 {[%clk
0:02:33.1]} 15... Bd7 {[%clk 0:01:35.7]} 16. Rfd1 {[%clk 0:02:04.5]} 16... Nca4
{[%clk 0:01:09.3]} 17. Qe4 {[%clk 0:01:51.8]} 17... g6 {[%clk 0:01:08]} 18. Nxa4
{[%clk 0:01:46.4]} 18... Bc6 {[%clk 0:01:07.6]} 19. Qf4 {[%clk 0:01:34.2]} 19...
Nd5 {[%clk 0:00:56]} 20. Qg4 {[%clk 0:01:22.9]} 20... Bxa4 {[%clk 0:00:45.5]}
21. Qxa4 {[%clk 0:01:17.7]} 21... Qb6 {[%clk 0:00:46.2]} 22. b4 {[%clk
0:01:11.4]} 22... Rac8 {[%clk 0:00:44.1]} 23. Be4 {[%clk 0:01:08.6]} 23... Nc3
{[%clk 0:00:38.4]} 24. Bxc3 {[%clk 0:01:07.5]} 24... Rxc3 {[%clk 0:00:37.8]} 25.
Rd7 {[%clk 0:01:01.7]} 25... Rfc8 {[%clk 0:00:23.8]} 26. Rad1 {[%clk 0:01:00.2]}
26... R3c7 {[%clk 0:00:03.6]} 27. g3 {[%clk 0:00:56.4]} 27... a6 {[%clk
0:00:02.2]} 28. Rxc7 {[%clk 0:00:56.2]} 28... Rxc7 {[%clk 0:00:02.3]} 29. Qe8+
{[%clk 0:00:50.4]} 29... Kg7 {[%clk 0:00:02.4]} 30. Kg2 {[%clk 0:00:44.5]} 30...
a5 {[%clk 0:00:01.2]} 31. Rd7 {[%clk 0:00:36.2]} 1-0

[Event "*** Titled Tuesday Blitz"]
[Site "Chess.com"]
[Date "2021.02.09"]
[Round "3"]
[White "LucaBrasi1968"]
[Black "iwanyu"]
[Result "0-1"]
[WhiteElo "2529"]
[BlackElo "2814"]
[TimeControl "180+1"]
[EndTime "10:28:29 PST"]
[Termination "iwanyu won by resignation"]

1. d4 {[%clk 0:03:00.9]} 1... Nf6 {[%clk 0:02:59]} 2. Nf3 {[%clk 0:03:00.3]}
2... e6 {[%clk 0:02:59.9]} 3. Bg5 {[%clk 0:02:59.3]} 3... d5 {[%clk 0:02:59.2]}
4. e3 {[%clk 0:02:59]} 4... Be7 {[%clk 0:02:57.1]} 5. c4 {[%clk 0:02:50.1]} 5...
O-O {[%clk 0:02:53.8]} 6. Nc3 {[%clk 0:02:49.7]} 6... c6 {[%clk 0:02:51.3]} 7.
Rc1 {[%clk 0:02:42.6]} 7... Nbd7 {[%clk 0:02:51.2]} 8. cxd5 {[%clk 0:02:41]}
8... Nxd5 {[%clk 0:02:50.2]} 9. Bxe7 {[%clk 0:02:39.5]} 9... Qxe7 {[%clk
0:02:51.1]} 10. Nxd5 {[%clk 0:02:30.1]} 10... exd5 {[%clk 0:02:51.1]} 11. Bd3
{[%clk 0:02:29.4]} 11... Nf6 {[%clk 0:02:46.9]} 12. h3 {[%clk 0:02:29]} 12... a5
{[%clk 0:02:45.2]} 13. a3 {[%clk 0:02:27.2]} 13... Ne8 {[%clk 0:02:45.2]} 14.
O-O {[%clk 0:02:26]} 14... Nd6 {[%clk 0:02:41.3]} 15. Qc2 {[%clk 0:02:23]} 15...
g6 {[%clk 0:02:39.8]} 16. Rfe1 {[%clk 0:02:06.3]} 16... Bf5 {[%clk 0:02:39.5]}
17. Bxf5 {[%clk 0:01:57.4]} 17... Nxf5 {[%clk 0:02:40.4]} 18. Ne5 {[%clk
0:01:41.4]} 18... Nd6 {[%clk 0:02:35.8]} 19. Nd3 {[%clk 0:01:36.9]} 19... Rfe8
{[%clk 0:02:31]} 20. Nc5 {[%clk 0:01:35.5]} 20... h5 {[%clk 0:02:24.3]} 21. Nd3
{[%clk 0:01:20.5]} 21... Qg5 {[%clk 0:02:20.9]} 22. Ne5 {[%clk 0:01:11.8]} 22...
Nf5 {[%clk 0:02:11.6]} 23. Nf3 {[%clk 0:01:10.8]} 23... Qf6 {[%clk 0:02:08.3]}
24. Qd3 {[%clk 0:01:03.8]} 24... Nd6 {[%clk 0:02:00.9]} 25. Ne5 {[%clk 0:00:56]}
25... Kg7 {[%clk 0:02:00]} 26. f3 {[%clk 0:00:42.5]} 26... Qg5 {[%clk
0:01:57.8]} 27. Rc2 {[%clk 0:00:36.9]} 27... f6 {[%clk 0:01:49.4]} 28. Nd7
{[%clk 0:00:36.2]} 28... Re7 {[%clk 0:01:42.5]} 29. Nc5 {[%clk 0:00:35.6]} 29...
Rae8 {[%clk 0:01:37.5]} 30. Rce2 {[%clk 0:00:33.3]} 30... b6 {[%clk 0:01:30.7]}
31. Na4 {[%clk 0:00:33.1]} 31... b5 {[%clk 0:01:04.4]} 32. Nc5 {[%clk
0:00:32.7]} 32... f5 {[%clk 0:01:05.1]} 33. Qd2 {[%clk 0:00:22.6]} 33... Nc4
{[%clk 0:01:04.2]} 34. Qd3 {[%clk 0:00:20.2]} 34... Nxe3 {[%clk 0:01:02.1]} 35.
b4 {[%clk 0:00:12.1]} 35... f4 {[%clk 0:00:49]} 36. bxa5 {[%clk 0:00:11.3]}
36... Kh6 {[%clk 0:00:47.5]} 37. a6 {[%clk 0:00:09]} 37... Nxg2 {[%clk
0:00:45.6]} 38. Rxe7 {[%clk 0:00:08.8]} 38... Nxe1+ {[%clk 0:00:44.5]} 0-1